Workbook

Sheet Лист1
A1: A | B1: 0
A2: B | B2: 3.14159
A3: N | B3: 100
A4: h | B4: =(B2-B1)/B3 -> 0.0314159
A5: e | B5: 0.001
F6: точность | G6: сумма | H6: =SUM(E8:E107) -> 500.0209845
A7: i | B7: x | C7: x0…x(n-1) | D7: xi+h/2 | E7: f(xi+h/2) | F7: =IF(ABS(C8)<$B$5,"Корень найден","Корень не найден") -> Корень найден | G7: интеграл | H7: =B4*H6 -> 15.70860925
A8: 0 | B8: 0 | C8: =5*B8*SIN(B8) -> 0 | D8: =B8+$B$4/2 -> 0.01570795 | E8: =5*D8*SIN(D8) -> 0.001233647733
A9: =A8+1 -> 1 | B9: =B8+$B$4 -> 0.0314159 | C9: =5*B9*SIN(B9) -> 0.004933982164 | D9: =B9+$B$4/2 -> 0.04712385 | E9: =5*D9*SIN(D9) -> 0.01109917722
A10: =A9+1 -> 2 | B10: =B9+$B$4 -> 0.0628318 | C10: 0.01972619018 | D10: =B10+$B$4/2 -> 0.07853975 | E10: 0.03081076285
A11: 3 | B11: =B10+$B$4 -> 0.0942477 | C11: 0.04434742306 | D11: =B11+$B$4/2 -> 0.10995565 | E11: 0.06032948676
A12: 4 | B12: =B11+$B$4 -> 0.1256636 | C12: 0.07874906048 | D12: =B12+$B$4/2 -> 0.14137155 | E12: 0.09959704421
A13: 5 | B13: =B12+$B$4 -> 0.1570795 | C13: 0.1228631348 | D13: =B13+$B$4/2 -> 0.17278745 | E13: 0.1485358299
A14: 6 | B14: =B13+$B$4 -> 0.1884954 | C14: 0.1766024318 | D14: =B14+$B$4/2 -> 0.20420335 | E14: 0.2070490528
A15: 7 | B15: =B14+$B$4 -> 0.2199113 | C15: 0.2398606197 | D15: =B15+$B$4/2 -> 0.23561925 | E15: =5*D15*SIN(D15) -> 0.2750208798
A16: 8 | B16: =B15+$B$4 -> 0.2513272 | C16: 0.3125124067 | D16: =B16+$B$4/2 -> 0.26703515 | E16: 0.3523166069
A17: 9 | B17: =B16+$B$4 -> 0.2827431 | C17: 0.3944137267 | D17: =B17+$B$4/2 -> 0.29845105 | E17: 0.4387828595
A18: 10 | B18: =B17+$B$4 -> 0.314159 | C18: 0.4854019533 | D18: =B18+$B$4/2 -> 0.32986695 | E18: =5*D18*SIN(D18) -> 0.5342478192
A19: 11 | B19: =B18+$B$4 -> 0.3455749 | C19: =5*B19*SIN(B19) -> 0.58529614 | D19: 0.36128285 | E19: 0.6385214792
A20: 12 | B20: 0.3769908 | C20: 0.69389729 | D20: 0.39269875 | E20: 0.751395926
A21: 13 | B21: 0.4084067 | C21: 0.8109886506 | D21: 0.42411465 | E21: 0.8726456485
A22: 14 | B22: 0.4398226 | C22: 0.936336036 | D22: 0.45553055 | E22: 1.002027873
A23: 15 | B23: 0.4712385 | C23: 1.069688175 | D23: 0.48694645 | E23: 1.139282924
A24: 16 | B24: 0.5026544 | C24: 1.210777085 | D24: 0.51836235 | E24: 1.284134613
A25: 17 | B25: 0.5340703 | C25: 1.359318471 | D25: 0.54977825 | E25: 1.436290644
A26: 18 | B26: 0.5654862 | C26: 1.51501215 | D26: 0.58119415 | E26: 1.595443058
A27: 19 | B27: 0.5969021 | C27: 1.677542499 | D27: 0.61261005 | E27: 1.761268684
A28: 20 | B28: 0.628318 | C28: 1.846578922 | D28: 0.64402595 | E28: 1.933429629
A29: 21 | B29: 0.6597339 | C29: 2.021776352 | D29: 0.67544185 | E29: 2.111573779
A30: 22 | B30: 0.6911498 | C30: 2.202775761 | D30: 0.70685775 | E30: 2.295335326
A31: 23 | B31: 0.7225657 | C31: 2.3892047 | D31: 0.73827365 | E31: 2.484335322
A32: 24 | B32: 0.7539816 | C32: 2.580677861 | D32: 0.76968955 | E32: 2.678182239
A33: 25 | B33: 0.7853975 | C33: 2.776797649 | D33: 0.80110545 | E33: 2.876472568
A34: 26 | B34: 0.8168134 | C34: 2.977154786 | D34: 0.83252135 | E34: 3.078791418
A35: 27 | B35: 0.8482293 | C35: 3.181328928 | D35: 0.86393725 | E35: 3.284713147
A36: 28 | B36: 0.8796452 | C36: 3.388889295 | D36: 0.89535315 | E36: 3.493802001
A37: 29 | B37: 0.9110611 | C37: 3.599395325 | D37: 0.92676905 | E37: 3.705612778
A38: 30 | B38: 0.942477 | C38: 3.812397344 | D38: 0.95818495 | E38: 3.919691501
A39: 31 | B39: 0.9738929 | C39: 4.027437244 | D39: 0.98960085 | E39: 4.135576106
A40: 32 | B40: 1.0053088 | C40: 4.244049181 | D40: 1.02101675 | E40: 4.352797147
A41: 33 | B41: 1.0367247 | C41: 4.461760288 | D41: 1.05243265 | E41: 4.570878515
A42: 34 | B42: 1.0681406 | C42: 4.680091394 | D42: 1.08384855 | E42: 4.789338162
A43: 35 | B43: 1.0995565 | C43: 4.898557758 | D43: 1.11526445 | E43: 5.007688841
A44: 36 | B44: 1.1309724 | C44: 5.116669815 | D44: 1.14668035 | E44: 5.225438856
A45: 37 | B45: 1.1623883 | C45: 5.33393393 | D45: 1.17809625 | E45: 5.44209282
A46: 38 | B46: 1.1938042 | C46: 5.549853154 | D46: 1.20951215 | E46: 5.657152421
A47: 39 | B47: 1.2252201 | C47: 5.763928002 | D47: 1.24092805 | E47: 5.870117191
A48: 40 | B48: 1.256636 | C48: 5.975657221 | D48: 1.27234395 | E48: 6.080485289
A49: 41 | B49: 1.2880519 | C49: 6.184538577 | D49: 1.30375985 | E49: 6.287754282
A50: 42 | B50: 1.3194678 | C50: 6.390069635 | D50: 1.33517575 | E50: 6.491421931
A51: 43 | B51: 1.3508837 | C51: 6.59174855 | D51: 1.36659165 | E51: 6.690986983
A52: 44 | B52: 1.3822996 | C52: 6.789074857 | D52: 1.39800755 | E52: 6.885949959
A53: 45 | B53: 1.4137155 | C53: 6.981550261 | D53: 1.42942345 | E53: 7.075813946
A54: 46 | B54: 1.4451314 | C54: 7.168679431 | D54: 1.46083935 | E54: 7.260085391
A55: 47 | B55: 1.4765473 | C55: 7.349970788 | D55: 1.49225525 | E55: 7.438274888
A56: 48 | B56: 1.5079632 | C56: 7.524937292 | D56: 1.52367115 | E56: 7.609897961
A57: 49 | B57: 1.5393791 | C57: 7.693097232 | D57: 1.55508705 | E57: 7.774475853
A58: 50 | B58: 1.570795 | C58: 7.853975 | D58: 1.58650295 | E58: 7.931536302
A59: 51 | B59: 1.6022109 | C59: 8.007101869 | D59: 1.61791885 | E59: 8.08061431
A60: 52 | B60: 1.6336268 | C60: 8.152016761 | D60: 1.64933475 | E60: 8.221252908
A61: 53 | B61: 1.6650427 | C61: 8.28826701 | D61: 1.68075065 | E61: 8.353003919
A62: 54 | B62: 1.6964586 | C62: 8.41540911 | D62: 1.71216655 | E62: 8.475428697
A63: 55 | B63: 1.7278745 | C63: 8.533009461 | D63: 1.74358245 | E63: 8.58809887
A64: 56 | B64: 1.7592904 | C64: 8.640645101 | D64: 1.77499835 | E64: 8.690597064
A65: 57 | B65: 1.7907063 | C65: 8.737904424 | D65: 1.80641425 | E65: 8.78251762
A66: 58 | B66: 1.8221222 | C66: 8.824387889 | D66: 1.83783015 | E66: 8.863467289
A67: 59 | B67: 1.8535381 | C67: 8.899708716 | D67: 1.86924605 | E67: 8.933065927
A68: 60 | B68: 1.884954 | C68: 8.96349356 | D68: 1.90066195 | E68: 8.990947157
A69: 61 | B69: 1.9163699 | C69: 9.015383179 | D69: 1.93207785 | E69: 9.036759032
A70: 62 | B70: 1.9477858 | C70: 9.05503308 | D70: 1.96349375 | E70: 9.07016467
A71: 63 | B71: 1.9792017 | C71: 9.082114147 | D71: 1.99490965 | E71: 9.090842874
A72: 64 | B72: 2.0106176 | C72: 9.096313253 | D72: 2.02632555 | E72: 9.098488736
A73: 65 | B73: 2.0420335 | C73: 9.097333851 | D73: 2.05774145 | E73: 9.092814213
A74: =A73+1 -> 66 | B74: 2.0734494 | C74: 9.084896547 | D74: 2.08915735 | E74: 9.073548697
A75: =A74+1 -> 67 | B75: 2.1048653 | C75: 9.058739649 | D75: 2.12057325 | E75: 9.040439545
A76: =A75+1 -> 68 | B76: 2.1362812 | C76: 9.018619697 | D76: 2.15198915 | E76: 8.993252604
A77: =A76+1 -> 69 | B77: 2.1676971 | C77: 8.964311966 | D77: 2.18340505 | E77: 8.9317727
A78: =A77+1 -> 70 | B78: 2.199113 | C78: 8.895610953 | D78: 2.21482095 | E78: 8.855804114
A79: =A78+1 -> 71 | B79: 2.2305289 | C79: 8.812330831 | D79: 2.24623685 | E79: 8.765171022
A80: =A79+1 -> 72 | B80: 2.2619448 | C80: 8.714305888 | D80: 2.27765275 | E80: 8.659717922
A81: =A80+1 -> 73 | B81: 2.2933607 | C81: 8.601390928 | D81: 2.30906865 | E81: 8.539310025
A82: =A81+1 -> 74 | B82: 2.3247766 | C82: 8.473461661 | D82: =B82+$B$4/2 -> 2.34048455 | E82: =5*D82*SIN(D82) -> 8.403833624
A83: =A82+1 -> 75 | B83: =B82+$B$4 -> 2.3561925 | C83: =5*B83*SIN(B83) -> 8.330415052 | D83: 2.37190045 | E83: 8.25319644
A84: =A83+1 -> 76 | B84: 2.3876084 | C84: 8.172169652 | D84: 2.40331635 | E84: 8.08732793
A85: =A84+1 -> 77 | B85: 2.4190243 | C85: 7.998665898 | D85: 2.43473225 | E85: 7.906179577
A86: =A85+1 -> 78 | B86: 2.4504402 | C86: 7.809866385 | D86: 2.46614815 | E86: 7.709725147
A87: =A86+1 -> 79 | B87: 2.4818561 | C87: 7.605756104 | D87: 2.49756405 | E87: 7.497960915
A88: =A87+1 -> 80 | B88: 2.513272 | C88: 7.386342665 | D88: 2.52897995 | E88: 7.270905867
A89: =A88+1 -> 81 | B89: 2.5446879 | C89: 7.151656471 | D89: 2.56039585 | E89: 7.028601864
A90: =A89+1 -> 82 | B90: 2.5761038 | C90: 6.901750878 | D90: 2.59181175 | E90: 6.771113786
A91: =A90+1 -> 83 | B91: 2.6075197 | C91: 6.636702315 | D91: 2.62322765 | E91: 6.498529637
A92: =A91+1 -> 84 | B92: 2.6389356 | C92: 6.356610378 | D92: 2.65464355 | E92: 6.210960619
A93: =A92+1 -> 85 | B93: 2.6703515 | C93: 6.061597893 | D93: 2.68605945 | E93: 5.908541187
A94: =A93+1 -> 86 | B94: 2.7017674 | C94: 5.751810942 | D94: 2.71747535 | E94: 5.591429053
A95: =A94+1 -> 87 | B95: 2.7331833 | C95: 5.427418866 | D95: 2.74889125 | E95: 5.259805178
A96: =A95+1 -> 88 | B96: 2.7645992 | C96: 5.088614231 | D96: 2.78030715 | E96: 4.913873717
A97: =A96+1 -> 89 | B97: 2.7960151 | C97: 4.735612764 | D97: 2.81172305 | E97: 4.553861944
A98: =A97+1 -> 90 | B98: 2.827431 | C98: 4.368653257 | D98: 2.84313895 | E98: 4.180020137
A99: =A98+1 -> 91 | B99: =B98+$B$4 -> 2.8588469 | C99: 3.98799744 | D99: 2.87455485 | E99: 3.792621439
A100: =A99+1 -> 92 | B100: =B99+$B$4 -> 2.8902628 | C100: 3.59392982 | D100: 2.90597075 | E100: 3.391961675
A101: =A100+1 -> 93 | B101: =B100+$B$4 -> 2.9216787 | C101: 3.186757493 | D101: 2.93738665 | E101: 2.978359154
A102: =A101+1 -> 94 | B102: =B101+$B$4 -> 2.9530946 | C102: 2.766809919 | D102: 2.96880255 | E102: 2.552154426
A103: =A102+1 -> 95 | B103: =B102+$B$4 -> 2.9845105 | C103: 2.334438673 | D103: 3.00021845 | E103: 2.113710015
A104: =A103+1 -> 96 | B104: =B103+$B$4 -> 3.0159264 | C104: 1.890017151 | D104: 3.03163435 | E104: 1.663410116
A105: =A104+1 -> 97 | B105: =B104+$B$4 -> 3.0473423 | C105: 1.433940265 | D105: 3.06305025 | E105: 1.201660266
A106: =A105+1 -> 98 | B106: =B105+$B$4 -> 3.0787582 | C106: 0.9666240872 | D106: 3.09446615 | E106: 0.7288869823
A107: =A106+1 -> 99 | B107: =B106+$B$4 -> 3.1101741 | C107: 0.4885054795 | D107: 3.12588205 | E107: 0.2455373678
A108: =A107+1 -> 100 | B108: =B107+$B$4 -> 3.14159 | C108: 4.168245585e-05
